fUSD/lending_fUSD_20241219
["ID","MTS","AMOUNT","RATE_DAILY","PERIOD"]
[346035064,1734646246475,-346.31332938,0.00023997,4]
[346035065,1734646246484,-500.0,0.00023997,4]
[346035066,1734646246494,-17.48649007,0.00023997,4]
[346035067,1734646246506,-484.53641708,0.00023997,4]
[346035068,1734646246516,-500.0,0.00023997,4]
[346035069,1734646246525,-500.0,0.00023997,4]
[346035070,1734646246534,-500.0,0.00023997,4]
[346035071,1734646246544,-500.0,0.00023997,4]
[346035072,1734646246553,-371.98,0.00023997,4]
[346035073,1734646246563,-185.25046896,0.00023997,4]
[346035074,1734646310774,500.0,0.00021164,2]
[346035078,1734646875757,154.29,0.00010137,2]
[346035080,1734647106997,59211.38,0.00018122,2]
[346035081,1734647107631,-4192.0,0.00018122,2]
[346035082,1734647108174,-4192.0,0.00018122,2]
[346035083,1734647150718,177643.69399342,0.00018023,2]
[346035085,1734647255880,-19007.61269412,0.0001998,2]
[346035086,1734647307204,-541.1,0.00021087,2]
[346035087,1734647307227,-150.0,0.000216,4]
[346035088,1734647307250,-150.0,0.000216,4]
[346035089,1734647307271,-150.0,0.000216,4]
[346035090,1734647307292,-150.0,0.000216,4]
[346035091,1734647307313,-150.0,0.000216,4]
[346035092,1734647307334,-696.9144439,0.00022,7]
[346035093,1734647307355,-169.0,0.00022,2]
[346035094,1734647307377,-737.07,0.00022775,2]
[346035095,1734647307399,-455.9155561,0.000228,2]
[346035109,1734647424440,514.04,0.00020855,2]
[346035124,1734647432233,-6.8484439,0.000228,2]
[346035125,1734647432243,-184.72,0.00022809,2]
[346035126,1734647432253,-709.4315533,0.00022843,2]
[346035127,1734647432264,-290.5684467,0.00022843,2]
[346035128,1734647432276,-250.0,0.00022926,2]
[346035129,1734647432285,-250.0,0.00023023,2]
[346035130,1734647432295,-184.0,0.0002305,2]
[346035131,1734647432305,-5737.16104812,0.00023051,2]
[346035132,1734647432482,-420.589625,0.00023051,2]
[346035248,1734647438099,-43448.80575799,0.00023051,2]
[346035249,1734647438122,-660.0,0.00023051,2]
[346035250,1734647438293,-2799.11216641,0.00023051,2]
[346035251,1734647438391,-17670.33140248,0.00023051,2]
[346035252,1734647438401,-155.95,0.00023107,30]
[346035253,1734647438410,-514.04,0.00023119,2]
[346035254,1734647438419,-518.64570365,0.00023184,2]
[346035255,1734647438428,-518.64570364,0.00023184,2]
[346035256,1734647438438,-634.004,0.00023415,3]
[346035257,1734647438447,-500.0,0.00023415,7]
[346035258,1734647438456,-7245.33303259,0.000235,15]
[346035259,1734647438466,-181.09501304,0.00023507,2]
[346035260,1734647438475,-1051.62325922,0.00023542,2]
[346035261,1734647438484,-169.26,0.00023591,2]
[346035262,1734647438493,-1500.0,0.000236,2]
[346035263,1734647438503,-181.09501304,0.00023616,2]
[346035264,1734647438512,-500.0,0.00023689,7]
[346035265,1734647438521,-181.09501304,0.00023753,2]
[346035266,1734647438530,-360.61406745,0.00023763,2]
[346035267,1734647438540,-571.7467411,0.00023819,2]
[346035268,1734647438549,-500.0,0.00023819,4]
[346035269,1734647438558,-287.83364513,0.00023819,4]
[346035270,1734647438568,-634.13,0.00023819,4]
[346035271,1734647438577,-500.0,0.00023819,4]
[346035272,1734647438587,-500.0,0.00023819,4]
[346035273,1734647438597,-500.0,0.00023819,4]
[346035274,1734647438606,-546.87,0.00023819,4]
[346035275,1734647438615,-565.75,0.00023819,4]
[346035276,1734647438625,-612.65462641,0.00023819,4]
[346035277,1734647438639,-500.0,0.00023819,4]
[346035279,1734647438648,-500.0,0.00023819,4]
[346035281,1734647438658,-62525.37707267,0.0002382,2]
[346035288,1734647440188,-460.3521112,0.00023819,4]
[346035289,1734647440197,-500.0,0.00023819,4]
[346035290,1734647440206,-14048.64788882,0.0002382,2]
[346035291,1734647440298,-68491.9999999,0.0002382,2]
[346035292,1734647440310,-24375.0,0.0002382,2]
[346035293,1734647440322,-23130.0,0.0002382,2]
[346035294,1734647440432,-2776.70500011,0.0002382,2]
[346035295,1734647440444,-13842.78532883,0.0002382,2]
[346035296,1734647440636,-972.99413731,0.0002382,2]
[346035297,1734647440671,-1000.6303869,0.0002382,2]
[346035317,1734647443180,-500.0,0.00023819,4]
[346035319,1734647443190,-97379.0,0.0002382,2]
[346035321,1734647443347,-2072.49445895,0.0002382,2]
[346035322,1734647443495,-28.83908788,0.0002382,2]
[346035333,1734647446262,-500.0,0.00023819,4]
[346035334,1734647446273,-500.0,0.00023819,4]
[346035335,1734647446283,-31749.23828554,0.0002382,2]
[346035336,1734647446318,-4234.83981536,0.0002382,2]
[346035337,1734647446339,-254.16629367,0.0002382,2]
[346035338,1734647446360,-727.04806406,0.0002382,2]
[346035339,1734647446381,-203.89869618,0.0002382,2]
[346035340,1734647446393,-130.50454398,0.00023863,2]
[346035341,1734647446485,-50.59046906,0.00023863,2]
[346035342,1734647446496,-1669.44273093,0.00023896,2]
[346035343,1734647446512,-781.38682249,0.00023896,2]
[346035344,1734647446526,-2549.17044658,0.00023896,2]
[346035345,1734647446537,-246.37595605,0.00023896,2]
[346035346,1734647446547,-9759.0406,0.00023897,2]
[346035347,1734647446559,-19617.79677538,0.00023897,2]
[346035349,1734647446694,-4.81432859,0.00023897,2]
[346035351,1734647501538,500.0,0.00021164,2]
[346035352,1734647502705,500.0,0.00021164,2]
[346035360,1734648569101,-385.8213744,0.0002036,2]
[346035361,1734648578690,155.95,0.00022402,30]
[346035366,1734648632669,-24825.1325569,0.0002,2]
[346035367,1734648632679,-112.4686256,0.0002036,2]
[346035368,1734648632688,-150.0,0.000216,4]
[346035369,1734648632697,-150.0,0.000216,4]
[346035370,1734648632706,-150.0,0.000216,4]
[346035371,1734648632716,-150.0,0.00022,4]
[346035372,1734648632725,-250.0,0.00022182,2]
[346035373,1734648632734,-150.0,0.000224,4]
[346035374,1734648632743,-150.0,0.000224,4]
[346035375,1734648632752,-176.01,0.00022563,2]
[346035376,1734648632761,-498.29,0.00022624,2]
[346035377,1734648632770,-2000.0,0.00022746,2]
[346035378,1734648632778,-154.41,0.00022771,2]
[346035379,1734648632787,-159.15,0.00022799,2]
[346035380,1734648632797,-472.181,0.000228,2]
[346035381,1734648632806,-150.0,0.000228,4]
[346035383,1734648632815,-154.41,0.00022809,2]
[346035385,1734648632825,-150.0,0.00022822,2]
[346035387,1734648632833,-610.34,0.00022828,2]
[346035389,1734648632842,-154.41,0.00022847,2]
[346035390,1734648632851,-300.0,0.00022876,2]
[346035392,1734648632860,-9347.51,0.00022877,2]
[346035393,1734648632869,-1000.0,0.00022882,2]
[346035394,1734648632878,-154.41,0.00022885,2]
[346035395,1734648632887,-219.71,0.00022901,2]
[346035396,1734648632896,-250.0,0.00022947,2]
[346035397,1734648632905,-418.80109333,0.00023177,2]
[346035398,1734648632914,-150.0,0.000232,4]
[346035399,1734648632924,-150.0,0.000232,4]
[346035400,1734648632933,-500.0,0.00023356,2]
[346035401,1734648632943,-500.0,0.00023356,2]
[346035402,1734648632952,-500.0,0.00023415,7]
[346035403,1734648632961,-507.203,0.00023494,4]
[346035405,1734648632972,-30000.0,0.00023495,2]
[346035407,1734648632982,-150.0,0.000236,4]
[346035409,1734648632991,-500.0,0.00023689,7]
[346035410,1734648633000,-152.0,0.00023694,3]
[346035412,1734648633010,-500.0,0.00023819,4]
[346035413,1734648633020,-500.0,0.00023819,4]
[346035414,1734648633029,-500.0,0.00023819,4]
[346035415,1734648633039,-500.0,0.00023819,4]
[346035416,1734648633050,-500.0,0.00023819,4]
[346035417,1734648633060,-500.0,0.00023819,4]
[346035418,1734648633071,-500.0,0.00023819,4]
[346035419,1734648633081,-500.0,0.00023819,4]
[346035420,1734648633090,-500.0,0.00023819,4]
[346035421,1734648633100,-500.0,0.00023819,4]
[346035422,1734648633109,-500.0,0.00023819,4]
[346035423,1734648633119,-500.0,0.00023819,4]
[346035424,1734648633129,-500.0,0.00023819,4]
[346035425,1734648633138,-500.0,0.00023819,4]
[346035426,1734648633147,-500.0,0.00023819,4]
[346035427,1734648633158,-500.0,0.00023819,4]
[346035428,1734648633167,-500.0,0.00023819,4]
[346035429,1734648633177,-551.63651828,0.00023819,4]
[346035430,1734648633186,-500.0,0.00023819,4]
[346035431,1734648633195,-577.92611389,0.00023819,4]
[346035432,1734648633204,-500.0,0.00023819,4]
[346035433,1734648633213,-500.0,0.00023819,4]
[346035434,1734648633223,-500.0,0.00023819,4]
[346035435,1734648633232,-500.0,0.00023819,4]
[346035436,1734648633241,-500.0,0.00023819,4]
[346035437,1734648633251,-500.0,0.00023819,4]
[346035438,1734648633260,-500.0,0.00023819,4]
[346035439,1734648633270,-627.42083403,0.00023819,4]
[346035440,1734648633279,-500.0,0.00023819,4]
[346035441,1734648633288,-500.0,0.00023819,4]
[346035442,1734648633298,-500.0,0.00023819,4]
[346035443,1734648633307,-500.0,0.00023819,4]
[346035444,1734648633317,-500.0,0.00023819,4]
[346035445,1734648633326,-500.0,0.00023819,4]
[346035446,1734648633335,-500.0,0.00023819,4]
[346035447,1734648633345,-500.0,0.00023819,4]
[346035448,1734648633354,-500.0,0.00023819,4]
[346035449,1734648633363,-583.13831787,0.00023819,4]
[346035450,1734648633373,-500.0,0.00023819,4]
[346035451,1734648633383,-500.0,0.00023819,4]
[346035452,1734648633392,-500.0,0.00023819,4]
[346035453,1734648633401,-500.0,0.00023819,4]
[346035454,1734648633410,-500.0,0.00023819,4]
[346035455,1734648633419,-695.13,0.00023819,4]
[346035456,1734648633429,-749.79,0.00023819,4]
[346035457,1734648633439,-555.59111167,0.00023819,4]
[346035458,1734648633448,-531.04,0.00023819,4]
[346035459,1734648633458,-500.0,0.00023819,4]
[346035460,1734648633467,-500.0,0.00023819,4]
[346035461,1734648633476,-556.20592351,0.00023819,4]
[346035462,1734648633486,-500.0,0.00023819,4]
[346035463,1734648633495,-500.0,0.00023819,4]
[346035464,1734648633505,-500.0,0.00023819,4]
[346035465,1734648633514,-500.0,0.00023819,4]
[346035466,1734648633524,-500.0,0.00023819,4]
[346035467,1734648633533,-500.0,0.00023819,4]
[346035468,1734648633547,-500.0,0.00023819,4]
[346035469,1734648633556,-500.0,0.00023819,4]
[346035470,1734648633567,-500.0,0.00023819,4]
[346035471,1734648633577,-500.0,0.00023819,4]
[346035472,1734648633587,-500.0,0.00023819,4]
[346035473,1734648633597,-500.0,0.00023819,4]
[346035474,1734648633607,-500.0,0.00023819,4]
[346035475,1734648633616,-500.0,0.00023819,4]
[346035476,1734648633626,-500.0,0.00023819,4]
[346035477,1734648633635,-500.0,0.00023819,4]
[346035478,1734648633645,-347.09115136,0.00023819,4]
[346035479,1734648633654,-500.0,0.00023819,4]
[346035480,1734648633664,-500.0,0.00023819,4]
[346035481,1734648633674,-500.0,0.00023819,4]
[346035482,1734648633683,-500.0,0.00023819,4]
[346035483,1734648633693,-631.40656545,0.00023819,4]
[346035484,1734648633701,-500.0,0.00023819,4]
[346035485,1734648633711,-500.0,0.00023819,4]
[346035486,1734648633720,-500.0,0.00023819,4]
[346035487,1734648633729,-500.0,0.00023819,4]
[346035488,1734648633739,-500.0,0.00023819,4]
[346035489,1734648633749,-505.51,0.00023819,4]
[346035490,1734648633758,-500.0,0.00023819,4]
[346035491,1734648633767,-500.0,0.00023819,4]
[346035492,1734648633775,-500.0,0.00023819,4]
[346035493,1734648633784,-500.0,0.00023819,4]
[346035494,1734648633794,-500.0,0.00023819,4]
[346035495,1734648633803,-500.0,0.00023819,4]
[346035496,1734648633812,-500.0,0.00023819,4]
[346035497,1734648633824,-500.0,0.00023819,4]
[346035498,1734648633833,-500.0,0.00023819,4]
[346035499,1734648633843,-500.0,0.00023819,4]
[346035500,1734648633852,-500.0,0.00023819,4]
[346035501,1734648633861,-500.0,0.00023819,4]
[346035502,1734648633870,-500.0,0.00023819,4]
[346035503,1734648633879,-500.0,0.00023819,7]
[346035504,1734648633889,-500.0,0.00023819,4]
[346035505,1734648633899,-500.0,0.00023819,4]
[346035506,1734648633908,-500.0,0.00023819,4]
[346035507,1734648633918,-500.0,0.00023819,4]
[346035508,1734648633927,-500.0,0.00023819,4]
[346035509,1734648633938,-500.0,0.00023819,4]
[346035510,1734648633948,-500.0,0.00023819,4]
[346035511,1734648633957,-500.0,0.00023819,4]
[346035512,1734648633971,-500.0,0.00023819,4]
[346035513,1734648633981,-500.0,0.00023819,4]
[346035514,1734648633990,-500.0,0.00023819,4]
[346035515,1734648634000,-594.47461837,0.00023819,4]
[346035516,1734648634010,-500.0,0.00023819,4]
[346035517,1734648634020,-500.0,0.00023819,4]
[346035518,1734648634030,-500.0,0.00023819,4]
[346035519,1734648634039,-500.0,0.00023819,4]
[346035520,1734648634050,-500.0,0.00023819,4]
[346035521,1734648634060,-500.0,0.00023819,4]
[346035522,1734648634069,-500.0,0.00023819,4]
[346035523,1734648634079,-500.0,0.00023819,4]
[346035524,1734648634088,-500.0,0.00023819,4]
[346035525,1734648634098,-500.0,0.00023819,4]
[346035526,1734648634108,-500.0,0.00023819,4]
[346035527,1734648634117,-500.0,0.00023819,4]
[346035528,1734648634127,-500.0,0.00023819,4]
[346035529,1734648634136,-500.0,0.00023819,4]
[346035530,1734648634146,-500.0,0.00023819,4]
[346035531,1734648634156,-500.0,0.00023819,4]
[346035532,1734648634166,-500.0,0.00023819,4]
[346035533,1734648634175,-500.0,0.00023819,4]
[346035534,1734648634185,-500.0,0.00023819,4]
[346035535,1734648634194,-500.0,0.00023819,4]
[346035536,1734648634203,-500.0,0.00023819,4]
[346035537,1734648634212,-500.0,0.00023819,4]
[346035538,1734648634222,-500.0,0.00023819,4]
[346035539,1734648634231,-500.0,0.00023819,4]
[346035540,1734648634240,-500.0,0.00023819,4]
[346035541,1734648634250,-500.0,0.00023819,4]
[346035542,1734648634259,-500.0,0.00023819,4]
[346035543,1734648634268,-500.0,0.00023819,4]
[346035544,1734648634278,-500.0,0.00023819,4]
[346035545,1734648634287,-500.0,0.00023819,4]
[346035546,1734648634297,-500.0,0.00023819,4]
[346035547,1734648634306,-500.0,0.00023819,4]
[346035548,1734648634316,-482.5679693,0.00023819,4]
[346035549,1734648634326,-500.0,0.00023819,4]
[346035550,1734648634336,-500.0,0.00023819,4]
[346035551,1734648634345,-500.0,0.00023819,4]
[346035552,1734648634355,-500.0,0.00023819,4]
[346035553,1734648634365,-500.0,0.00023819,4]
[346035554,1734648634374,-500.0,0.00023819,4]
[346035555,1734648634384,-500.0,0.00023819,4]
[346035556,1734648634393,-500.0,0.00023819,4]
[346035557,1734648634403,-500.0,0.00023819,4]
[346035558,1734648634412,-500.0,0.00023819,4]
[346035559,1734648634421,-500.0,0.00023819,4]
[346035560,1734648634430,-500.0,0.00023819,4]
[346035561,1734648634440,-500.0,0.00023819,4]
[346035562,1734648634449,-500.0,0.00023819,4]
[346035563,1734648634459,-500.0,0.00023819,4]
[346035564,1734648634467,-500.0,0.00023819,4]
[346035565,1734648634476,-500.0,0.00023819,4]
[346035566,1734648634485,-500.0,0.00023819,4]
[346035567,1734648634495,-500.0,0.00023819,4]
[346035568,1734648634504,-502.97479246,0.00023819,4]
[346035569,1734648634513,-500.0,0.00023819,4]
[346035570,1734648634522,-500.0,0.00023819,4]
[346035571,1734648634531,-500.0,0.00023819,4]
[346035572,1734648634540,-355.26906952,0.00023819,4]
[346035573,1734648634550,-500.0,0.00023819,4]
[346035574,1734648634559,-500.0,0.00023819,4]
[346035575,1734648634568,-500.0,0.00023819,4]
[346035576,1734648634578,-500.0,0.00023819,4]
[346035577,1734648634587,-500.0,0.00023819,4]
[346035578,1734648634596,-500.0,0.00023819,4]
[346035579,1734648634605,-500.0,0.00023819,4]
[346035580,1734648634614,-500.0,0.00023819,4]
[346035581,1734648634624,-500.0,0.00023819,4]
[346035582,1734648634633,-499.78004712,0.00023819,4]
[346035583,1734648634642,-500.0,0.00023819,4]
[346035584,1734648634651,-500.0,0.00023819,4]
[346035585,1734648634660,-294.48527722,0.00023819,4]
[346035586,1734648634669,-500.0,0.00023819,4]
[346035587,1734648634678,-500.0,0.00023819,4]
[346035588,1734648634687,-500.0,0.00023819,4]
[346035589,1734648634696,-500.0,0.00023819,4]
[346035590,1734648634705,-500.0,0.00023819,4]
[346035591,1734648634714,-1000.0,0.00023819,5]
[346035592,1734648634723,-500.0,0.00023819,4]
[346035593,1734648634732,-500.0,0.00023819,4]
[346035594,1734648634741,-500.0,0.00023819,2]
[346035595,1734648634751,-500.0,0.00023819,4]
[346035596,1734648634760,-500.0,0.00023819,4]
[346035597,1734648634769,-500.0,0.00023819,4]
[346035598,1734648634778,-500.0,0.00023819,4]
[346035599,1734648634787,-500.0,0.00023819,4]
[346035600,1734648634796,-500.0,0.00023819,4]
[346035601,1734648634805,-500.0,0.00023819,4]
[346035602,1734648634815,-500.0,0.00023819,4]
[346035603,1734648634824,-500.0,0.00023819,4]
[346035604,1734648634834,-500.0,0.00023819,4]
[346035605,1734648634843,-500.0,0.00023819,4]
[346035606,1734648634852,-500.0,0.00023819,4]
[346035607,1734648634861,-500.0,0.00023819,4]
[346035608,1734648634869,-500.0,0.00023819,4]
[346035609,1734648634882,-500.0,0.00023819,4]
[346035610,1734648634891,-510.12689121,0.00023819,4]
[346035611,1734648634900,-500.0,0.00023819,2]
[346035612,1734648634909,-500.0,0.00023819,4]
[346035613,1734648634919,-500.0,0.00023819,4]
[346035614,1734648634928,-500.0,0.00023819,4]
[346035615,1734648634937,-500.0,0.00023819,4]
[346035616,1734648634947,-500.0,0.00023819,4]
[346035617,1734648634956,-500.0,0.00023819,4]
[346035618,1734648634966,-500.0,0.00023819,4]
[346035619,1734648634978,-500.0,0.00023819,4]
[346035620,1734648634987,-500.0,0.00023819,4]
[346035621,1734648634996,-500.0,0.00023819,4]
[346035622,1734648635006,-500.0,0.00023819,4]
[346035623,1734648635018,-500.0,0.00023819,4]
[346035624,1734648635027,-500.0,0.00023819,4]
[346035625,1734648635036,-500.0,0.00023819,4]
[346035626,1734648635046,-500.0,0.00023819,4]
[346035627,1734648635055,-500.0,0.00023819,4]
[346035628,1734648635065,-500.0,0.00023819,4]
[346035629,1734648635076,-500.0,0.00023819,4]
[346035630,1734648635085,-500.0,0.00023819,4]
[346035631,1734648635095,-500.0,0.00023819,4]
[346035632,1734648635104,-329.02601272,0.00023819,4]
[346035633,1734648635113,-500.0,0.00023819,4]
[346035634,1734648635123,-500.0,0.00023819,4]
[346035635,1734648635132,-500.0,0.00023819,4]
[346035636,1734648635141,-500.0,0.00023819,4]
[346035637,1734648635150,-500.0,0.00023819,4]
[346035638,1734648635160,-500.0,0.00023819,4]
[346035639,1734648635169,-500.0,0.00023819,4]
[346035640,1734648635178,-500.0,0.00023819,4]
[346035641,1734648635189,-500.0,0.00023819,4]
[346035642,1734648635198,-500.0,0.00023819,4]
[346035643,1734648635208,-500.0,0.00023819,4]
[346035644,1734648635217,-500.0,0.00023819,4]
[346035645,1734648635226,-500.0,0.00023819,4]
[346035646,1734648635236,-500.0,0.00023819,4]
[346035647,1734648635245,-500.0,0.00023819,4]
[346035648,1734648635254,-500.0,0.00023819,4]
[346035649,1734648635263,-500.0,0.00023819,4]
[346035650,1734648635273,-500.0,0.00023819,4]
[346035651,1734648635282,-500.0,0.00023819,4]
[346035652,1734648635291,-500.0,0.00023819,4]
[346035653,1734648635300,-500.0,0.00023819,4]
[346035654,1734648635309,-500.0,0.00023819,4]
[346035655,1734648635319,-500.0,0.00023819,4]
[346035656,1734648635328,-500.0,0.00023819,4]
[346035657,1734648635337,-500.0,0.00023819,4]
[346035658,1734648635346,-500.0,0.00023819,4]
[346035659,1734648635355,-507.11,0.00023819,4]
[346035660,1734648635364,-312.09512934,0.00023819,4]
[346035661,1734648635374,-500.0,0.00023819,4]
[346035662,1734648635383,-500.0,0.00023819,4]
[346035663,1734648635392,-500.0,0.00023819,4]
[346035664,1734648635401,-500.0,0.00023819,4]
[346035665,1734648635410,-500.0,0.00023819,4]
[346035666,1734648635419,-500.0,0.00023819,4]
[346035667,1734648635429,-500.0,0.00023819,4]
[346035668,1734648635438,-500.0,0.00023819,4]
[346035669,1734648635447,-500.0,0.00023819,4]
[346035670,1734648635456,-500.0,0.00023819,4]
[346035671,1734648635465,-500.0,0.00023819,4]
[346035672,1734648635474,-500.0,0.00023819,4]
[346035673,1734648635483,-500.0,0.00023819,4]
[346035674,1734648635493,-500.0,0.00023819,4]
[346035675,1734648635502,-500.0,0.00023819,4]
[346035676,1734648635512,-500.0,0.00023819,4]
[346035677,1734648635521,-500.0,0.00023819,4]
[346035678,1734648635531,-500.0,0.00023819,4]
[346035679,1734648635541,-500.0,0.00023819,4]
[346035680,1734648635550,-500.0,0.00023819,4]
[346035681,1734648635560,-500.0,0.00023819,4]
[346035682,1734648635570,-500.0,0.00023819,4]
[346035683,1734648635580,-500.0,0.00023819,4]
[346035684,1734648635590,-500.0,0.00023819,4]
[346035685,1734648635599,-500.0,0.00023819,4]
[346035686,1734648635609,-500.0,0.00023819,4]
[346035687,1734648635618,-500.0,0.00023819,4]
[346035688,1734648635627,-500.0,0.00023819,4]
[346035689,1734648635637,-500.0,0.00023819,4]
[346035690,1734648635646,-500.0,0.00023819,4]
[346035691,1734648635656,-500.0,0.00023819,4]
[346035692,1734648635667,-500.0,0.00023819,4]
[346035693,1734648635680,-500.0,0.00023819,4]
[346035694,1734648635691,-266.96944552,0.00023819,4]
[346035695,1734648635700,-500.0,0.00023819,4]
[346035696,1734648635710,-500.0,0.00023819,4]
[346035697,1734648635720,-500.0,0.00023819,4]
[346035698,1734648635879,-504.37338793,0.00023819,4]
[346035699,1734648635890,-500.0,0.00023819,4]
[346035700,1734648635900,-500.0,0.00023819,4]
[346035701,1734648635909,-500.0,0.00023819,4]
[346035702,1734648635918,-500.0,0.00023819,4]
[346035703,1734648635928,-500.0,0.00023819,4]
[346035704,1734648635938,-167.2343845,0.00023836,2]
[346035705,1734648635947,-3358.5511,0.00023894,2]
[346035706,1734648635957,-221.73836049,0.00023895,2]
[346035707,1734648635970,-501.2242,0.00023895,2]
[346035708,1734648635979,-500.0,0.00023895,2]
[346035709,1734648635990,-1000.0,0.00023895,2]
[346035710,1734648636000,-2534.8792,0.00023896,2]
[346035711,1734648636010,-1176.0613,0.00023897,2]
[346035712,1734648636020,-158.51714257,0.000239,2]
[346035713,1734648636029,-200.7110216,0.000239,2]
[346035714,1734648636039,-1919.873343,0.000239,2]
[346035715,1734648636050,-567.21329622,0.000239,2]
[346035716,1734648636060,-221.73836042,0.00023951,2]
[346035717,1734648636071,-500.0,0.00023962,7]
[346035718,1734648636080,-500.0,0.00023972,4]
[346035719,1734648636090,-500.0,0.00023972,4]
[346035720,1734648636099,-500.0,0.00023972,4]
[346035721,1734648636109,-500.0,0.00023972,4]
[346035722,1734648636118,-500.0,0.00023972,4]
[346035723,1734648636127,-485.62,0.00023972,4]
[346035724,1734648636137,-500.0,0.00023972,4]
[346035725,1734648636146,-500.0,0.00023972,4]
[346035726,1734648636155,-648.19,0.00023972,4]
[346035727,1734648636164,-500.0,0.00023972,4]
[346035728,1734648636174,-1817.58,0.00023972,4]
[346035729,1734648636183,-500.0,0.00023972,4]
[346035730,1734648636196,-500.0,0.00023972,4]
[346035731,1734648636206,-527.44244192,0.00023972,4]
[346035732,1734648636215,-500.0,0.00023972,4]
[346035733,1734648636225,-500.0,0.00023972,4]
[346035734,1734648636235,-174.36,0.00023972,4]
[346035735,1734648636244,-500.0,0.00023972,4]
[346035736,1734648636253,-500.0,0.00023972,4]
[346035737,1734648636262,-500.0,0.00023972,4]
[346035738,1734648636271,-500.0,0.00023972,4]
[346035739,1734648636281,-500.0,0.00023972,4]
[346035740,1734648636290,-13633.0,0.00023973,2]
[346035741,1734648636300,-181.09501304,0.00023973,2]
[346035742,1734648636309,-500.0,0.00023973,2]
[346035743,1734648636318,-7334.0,0.00023973,2]
[346035744,1734648636328,-501.19653793,0.00023973,2]
[346035745,1734648636337,-500.30129282,0.00023973,2]
[346035746,1734648636346,-500.0,0.00023992,4]
[346035747,1734648636355,-500.0,0.00023993,4]
[346035748,1734648636365,-500.0,0.00023993,4]
[346035749,1734648636374,-500.0,0.00023993,4]
[346035750,1734648636384,-500.0,0.00023993,4]
[346035751,1734648636393,-500.0,0.00023993,4]
[346035752,1734648636402,-180.65306811,0.00023993,4]
[346035753,1734648636412,-500.0,0.00023993,4]
[346035754,1734648636421,-500.0,0.00023993,4]
[346035755,1734648636431,-500.0,0.00023993,4]
[346035756,1734648636440,-500.0,0.00023993,4]
[346035757,1734648636450,-500.0,0.00023993,4]
[346035758,1734648636459,-1534.12514446,0.00023993,2]
[346035759,1734648636468,-500.0,0.00023993,4]
[346035760,1734648636478,-384.88,0.00023993,4]
[346035761,1734648636487,-500.0,0.00023993,4]
[346035762,1734648636496,-500.0,0.00023993,4]
[346035763,1734648636506,-500.0,0.00023993,4]
[346035764,1734648636515,-500.0,0.00023993,4]
[346035765,1734648636526,-500.0,0.00023993,4]
[346035766,1734648636536,-500.0,0.00023993,4]
[346035767,1734648636546,-527.39,0.00023993,4]
[346035768,1734648636556,-500.0,0.00023993,4]
[346035769,1734648636565,-500.0,0.00023993,4]
[346035770,1734648636575,-500.0,0.00023993,4]
[346035771,1734648636584,-500.0,0.00023993,4]